[Event "Titled Tuesday Blitz February 14 Early 2023"]
[White "Martinez Ramirez, Lennis"]
[Black "Zherebtsova, Alexandra"]
[WhiteFideId "3509079"]
[BlackFideId "24129518"]
[WhiteElo "2426"]
[BlackElo "2155"]
[Result "1-0"]
[Round "05"]
[TimeControl "180+2"]
[Date "2023.02.15"]
[WhiteClock "0:02:12"]
[BlackClock "0:00:12"]

1. c4 {[%clk 0:02:54]}  e5 {[%clk 0:02:59]} 2. Nc3 {[%clk 0:02:53]}  Nc6 {[%clk 0:02:59]} 3. g3 {[%clk 0:02:52]}  f5 {[%clk 0:02:59]} 4. Bg2 {[%clk 0:02:51]}  Nf6 {[%clk 0:03:00]} 5. Rb1 {[%clk 0:02:50]}  a5 {[%clk 0:02:59]} 6. d3 {[%clk 0:02:49]}  g6 {[%clk 0:02:59]} 7. a3 {[%clk 0:02:48]}  Bg7 {[%clk 0:02:52]} 8. b4 {[%clk 0:02:41]}  axb4 {[%clk 0:02:50]} 9. axb4 {[%clk 0:02:41]}  d6 {[%clk 0:02:47]} 10. b5 {[%clk 0:02:39]}  Ne7 {[%clk 0:02:39]} 11. Nf3 {[%clk 0:02:38]}  O-O {[%clk 0:02:30]} 12. O-O {[%clk 0:02:36]}  Nd7 {[%clk 0:02:21]} 13. Bg5 {[%clk 0:02:35]}  h6 {[%clk 0:02:15]} 14. Bxe7 {[%clk 0:02:34]}  Qxe7 {[%clk 0:02:16]} 15. Nd5 {[%clk 0:02:34]}  Qd8 {[%clk 0:02:16]} 16. b6 {[%clk 0:02:35]}  Nxb6 {[%clk 0:01:57]} 17. Nxb6 {[%clk 0:02:31]}  cxb6 {[%clk 0:01:57]} 18. Ne1 {[%clk 0:02:29]}  Qc7 {[%clk 0:01:43]} 19. Nc2 {[%clk 0:02:29]}  Be6 {[%clk 0:01:09]} 20. Ne3 {[%clk 0:02:16]}  e4 {[%clk 0:00:42]} 21. dxe4 {[%clk 0:02:15]}  f4 {[%clk 0:00:39]} 22. Nd5 {[%clk 0:02:14]}  Bxd5 {[%clk 0:00:30]} 23. Qxd5+ {[%clk 0:02:13]}  Kh7 {[%clk 0:00:30]} 24. Rb5 {[%clk 0:02:13]}  Rac8 {[%clk 0:00:16]} 25. Rfb1 {[%clk 0:02:13]}  Qxc4 {[%clk 0:00:13]} 26. Rxb6 {[%clk 0:02:13]}  Qxd5 {[%clk 0:00:13]} 27. exd5 {[%clk 0:02:14]}  Rc7 {[%clk 0:00:12]} 28. Rxb7 {[%clk 0:02:13]}  Rff7 {[%clk 0:00:12]} 29. Rxc7 {[%clk 0:02:11]}  Rxc7 {[%clk 0:00:12]} 30. gxf4 {[%clk 0:02:12]}  Rc2 {[%clk 0:00:12]} 31. e3 {[%clk 0:02:12]}  g5 {[%clk 0:00:12]} 32. Be4+ {[%clk 0:02:12]} 1-0


[Site "https://www.chess.com"]

[Event "Titled Tuesday Blitz February 14 Early 2023"]
[White "Begunov, Konstantin"]
[Black "Boyer, Mahel"]
[WhiteFideId "4118510"]
[BlackFideId "45102422"]
[WhiteElo "2325"]
[BlackElo "2489"]
[Result "1/2-1/2"]
[Round "05"]
[TimeControl "180+2"]
[Date "2023.02.15"]
[WhiteClock "0:00:12"]
[BlackClock "0:00:10"]

1. d4 {[%clk 0:03:00]}  d6 {[%clk 0:01:17]} 2. e4 {[%clk 0:02:59]}  e5 {[%clk 0:01:17]} 3. Nf3 {[%clk 0:02:58]}  Nc6 {[%clk 0:01:17]} 4. Bc4 {[%clk 0:02:50]}  Nf6 {[%clk 0:00:49]} 5. Ng5 {[%clk 0:02:34]}  d5 {[%clk 0:00:49]} 6. exd5 {[%clk 0:02:09]}  Nxd4 {[%clk 0:00:26]} 7. d6 {[%clk 0:01:44]}  Ne6 {[%clk 0:00:22]} 8. Nxe6 {[%clk 0:01:31]}  Bxe6 {[%clk 0:00:23]} 9. Bxe6 {[%clk 0:01:31]}  fxe6 {[%clk 0:00:23]} 10. dxc7 {[%clk 0:01:32]}  Qxc7 {[%clk 0:00:13]} 11. O-O {[%clk 0:01:31]}  Bc5 {[%clk 0:00:13]} 12. Qe2 {[%clk 0:01:10]}  O-O {[%clk 0:00:14]} 13. Nc3 {[%clk 0:01:04]}  Bd4 {[%clk 0:00:05]} 14. Ne4 {[%clk 0:00:53]}  Qc6 {[%clk 0:00:03]} 15. Ng3 {[%clk 0:00:44]}  e4 {[%clk 0:00:02]} 16. c3 {[%clk 0:00:23]}  Be5 {[%clk 0:00:01]} 17. Bg5 {[%clk 0:00:18]}  Rad8 {[%clk 0:00:01]} 18. Bxf6 {[%clk 0:00:17]}  gxf6 {[%clk 0:00:02]} 19. Nxe4 {[%clk 0:00:16]}  f5 {[%clk 0:00:01]} 20. Ng3 {[%clk 0:00:15]}  Bc7 {[%clk 0:00:01]} 21. Rfe1 {[%clk 0:00:14]}  e5 {[%clk 0:00:02]} 22. Rad1 {[%clk 0:00:13]}  e4 {[%clk 0:00:01]} 23. Rxd8 {[%clk 0:00:13]}  Bxd8 {[%clk 0:00:01]} 24. Qh5 {[%clk 0:00:10]}  Qg6 {[%clk 0:00:02]} 25. Qxg6+ {[%clk 0:00:09]}  hxg6 {[%clk 0:00:03]} 26. Rd1 {[%clk 0:00:09]}  Bb6 {[%clk 0:00:03]} 27. Rd7 {[%clk 0:00:08]}  Re8 {[%clk 0:00:03]} 28. Kf1 {[%clk 0:00:08]}  f4 {[%clk 0:00:03]} 29. Ne2 {[%clk 0:00:07]}  g5 {[%clk 0:00:04]} 30. Nd4 {[%clk 0:00:06]}  Re5 {[%clk 0:00:03]} 31. Rxb7 {[%clk 0:00:05]}  Rd5 {[%clk 0:00:02]} 32. Ke2 {[%clk 0:00:02]}  Bxd4 {[%clk 0:00:02]} 33. cxd4 {[%clk 0:00:03]}  Rxd4 {[%clk 0:00:03]} 34. Rxa7 {[%clk 0:00:03]}  Rc4 {[%clk 0:00:04]} 35. Kd2 {[%clk 0:00:02]}  Rd4+ {[%clk 0:00:04]} 36. Ke2 {[%clk 0:00:02]}  Rc4 {[%clk 0:00:05]} 37. Kd2 {[%clk 0:00:03]}  g4 {[%clk 0:00:04]} 38. b3 {[%clk 0:00:03]}  Rd4+ {[%clk 0:00:04]} 39. Ke2 {[%clk 0:00:03]}  Rd3 {[%clk 0:00:04]} 40. Ra4 {[%clk 0:00:04]}  f3+ {[%clk 0:00:04]} 41. gxf3 {[%clk 0:00:03]}  gxf3+ {[%clk 0:00:05]} 42. Ke1 {[%clk 0:00:03]}  e3 {[%clk 0:00:05]} 43. Rg4+ {[%clk 0:00:04]}  Kf7 {[%clk 0:00:05]} 44. fxe3 {[%clk 0:00:04]}  Rxe3+ {[%clk 0:00:04]} 45. Kf2 {[%clk 0:00:05]}  Re2+ {[%clk 0:00:05]} 46. Kxf3 {[%clk 0:00:05]}  Rxa2 {[%clk 0:00:06]} 47. Rg2 {[%clk 0:00:06]}  Ra5 {[%clk 0:00:01]} 48. Rb2 {[%clk 0:00:07]}  Rb5 {[%clk 0:00:01]} 49. b4 {[%clk 0:00:08]}  Ke6 {[%clk 0:00:02]} 50. Ke4 {[%clk 0:00:08]}  Kd6 {[%clk 0:00:02]} 51. Kd4 {[%clk 0:00:09]}  Kc6 {[%clk 0:00:02]} 52. Kc4 {[%clk 0:00:09]}  Rh5 {[%clk 0:00:03]} 53. b5+ {[%clk 0:00:10]}  Kb6 {[%clk 0:00:03]} 54. Kd4 {[%clk 0:00:10]}  Rh4+ {[%clk 0:00:03]} 55. Ke3 {[%clk 0:00:10]}  Rh5 {[%clk 0:00:03]} 56. Kf4 {[%clk 0:00:10]}  Rh8 {[%clk 0:00:01]} 57. Kg3 {[%clk 0:00:09]}  Rg8+ {[%clk 0:00:01]} 58. Kf3 {[%clk 0:00:10]}  Rh8 {[%clk 0:00:02]} 59. Kg2 {[%clk 0:00:09]}  Rg8+ {[%clk 0:00:02]} 60. Kh1 {[%clk 0:00:10]}  Rh8 {[%clk 0:00:03]} 61. Rb3 {[%clk 0:00:10]}  Rh4 {[%clk 0:00:02]} 62. h3 {[%clk 0:00:11]}  Rh5 {[%clk 0:00:03]} 63. Kh2 {[%clk 0:00:11]}  Rxb5 {[%clk 0:00:03]} 64. Rxb5+ {[%clk 0:00:11]}  Kxb5 {[%clk 0:00:04]} 65. Kg3 {[%clk 0:00:11]}  Kc6 {[%clk 0:00:05]} 66. Kg4 {[%clk 0:00:11]}  Kd7 {[%clk 0:00:06]} 67. Kg5 {[%clk 0:00:12]}  Ke8 {[%clk 0:00:07]} 68. Kg6 {[%clk 0:00:12]}  Kf8 {[%clk 0:00:07]} 69. Kh7 {[%clk 0:00:12]}  Kf7 {[%clk 0:00:08]} 70. Kh6 {[%clk 0:00:12]}  Kf8 {[%clk 0:00:09]} 71. Kh7 {[%clk 0:00:12]}  Kf7 {[%clk 0:00:09]} 72. Kh6 {[%clk 0:00:12]}  Kf8 {[%clk 0:00:10]} 73. Kh7 {[%clk 0:00:12]} 1/2-1/2


[Site "https://www.chess.com"]

[Event "Titled Tuesday Blitz February 14 Early 2023"]
[White "Parkhov, Yair"]
[Black "Skuhala, Barbara"]
[WhiteFideId "2813408"]
[BlackFideId "14605465"]
[WhiteElo "2505"]
[BlackElo "2153"]
[Result "1-0"]
[Round "05"]
[TimeControl "180+2"]
[Date "2023.02.15"]
[WhiteClock "0:01:32"]
[BlackClock "0:01:15"]

1. Nf3 {[%clk 0:02:58]}  Nf6 {[%clk 0:02:59]} 2. d4 {[%clk 0:02:57]}  d5 {[%clk 0:02:58]} 3. c4 {[%clk 0:02:54]}  e6 {[%clk 0:02:57]} 4. Nc3 {[%clk 0:02:48]}  c6 {[%clk 0:02:52]} 5. Bg5 {[%clk 0:02:46]}  Be7 {[%clk 0:02:51]} 6. e3 {[%clk 0:02:37]}  O-O {[%clk 0:02:51]} 7. Qc2 {[%clk 0:02:37]}  Nbd7 {[%clk 0:02:50]} 8. Bd3 {[%clk 0:02:33]}  b6 {[%clk 0:02:49]} 9. cxd5 {[%clk 0:02:33]}  exd5 {[%clk 0:02:46]} 10. Ne5 {[%clk 0:02:30]}  Bb7 {[%clk 0:02:43]} 11. Nxd7 {[%clk 0:02:30]}  Qxd7 {[%clk 0:02:44]} 12. Bxf6 {[%clk 0:02:30]}  Bxf6 {[%clk 0:02:44]} 13. Bxh7+ {[%clk 0:02:31]}  Kh8 {[%clk 0:02:44]} 14. Bf5 {[%clk 0:02:30]}  Qd6 {[%clk 0:02:43]} 15. h4 {[%clk 0:02:22]}  Rae8 {[%clk 0:02:43]} 16. O-O-O {[%clk 0:02:21]}  b5 {[%clk 0:02:42]} 17. g4 {[%clk 0:02:17]}  a5 {[%clk 0:02:37]} 18. g5 {[%clk 0:02:11]}  Bd8 {[%clk 0:02:36]} 19. Ne2 {[%clk 0:02:09]}  a4 {[%clk 0:02:27]} 20. Nf4 {[%clk 0:02:07]}  Bc7 {[%clk 0:02:25]} 21. g6 {[%clk 0:02:02]}  Qf6 {[%clk 0:02:11]} 22. Nh5 {[%clk 0:01:59]}  Qd6 {[%clk 0:02:03]} 23. Rdg1 {[%clk 0:01:58]}  Re7 {[%clk 0:01:50]} 24. Qe2 {[%clk 0:01:51]}  c5 {[%clk 0:01:45]} 25. Nf6 {[%clk 0:01:43]}  fxg6 {[%clk 0:01:37]} 26. Bxg6 {[%clk 0:01:42]}  gxf6 {[%clk 0:01:16]} 27. Qh5+ {[%clk 0:01:33]}  Kg8 {[%clk 0:01:15]} 28. Bf7# {[%clk 0:01:32]} 1-0


[Site "https://www.chess.com"]

[Event "Titled Tuesday Blitz February 14 Early 2023"]
[White "Petrovic, Aleksa"]
[Black "Durarbayli, Vasif"]
[WhiteFideId "967629"]
[BlackFideId "13402935"]
[WhiteElo "2332"]
[BlackElo "2627"]
[Result "0-1"]
[Round "05"]
[TimeControl "180+2"]
[Date "2023.02.15"]
[WhiteClock "0:00:03"]
[BlackClock "0:00:02"]

1. d4 {[%clk 0:02:57]}  Nf6 {[%clk 0:02:59]} 2. c4 {[%clk 0:02:57]}  e6 {[%clk 0:03:00]} 3. Nf3 {[%clk 0:02:56]}  c5 {[%clk 0:03:00]} 4. d5 {[%clk 0:02:55]}  exd5 {[%clk 0:03:01]} 5. cxd5 {[%clk 0:02:55]}  d6 {[%clk 0:03:02]} 6. Nc3 {[%clk 0:02:55]}  g6 {[%clk 0:03:03]} 7. Nd2 {[%clk 0:02:56]}  Bg7 {[%clk 0:03:01]} 8. e4 {[%clk 0:02:56]}  O-O {[%clk 0:03:01]} 9. Be2 {[%clk 0:02:56]}  Na6 {[%clk 0:02:48]} 10. O-O {[%clk 0:02:55]}  Nc7 {[%clk 0:02:48]} 11. a4 {[%clk 0:02:51]}  b6 {[%clk 0:02:45]} 12. Nc4 {[%clk 0:02:47]}  Ba6 {[%clk 0:02:45]} 13. Bg5 {[%clk 0:02:45]}  Re8 {[%clk 0:02:42]} 14. Qc2 {[%clk 0:02:24]}  h6 {[%clk 0:02:40]} 15. Bf4 {[%clk 0:02:17]}  Bxc4 {[%clk 0:02:39]} 16. Bxc4 {[%clk 0:02:18]}  Nh5 {[%clk 0:02:37]} 17. Bd2 {[%clk 0:02:14]}  a6 {[%clk 0:02:37]} 18. Rae1 {[%clk 0:02:08]}  Qd7 {[%clk 0:02:31]} 19. Qd3 {[%clk 0:01:43]}  Kh7 {[%clk 0:02:25]} 20. Rb1 {[%clk 0:01:34]}  b5 {[%clk 0:02:07]} 21. axb5 {[%clk 0:01:31]}  axb5 {[%clk 0:02:08]} 22. Nxb5 {[%clk 0:01:30]}  Nf6 {[%clk 0:02:05]} 23. Nxc7 {[%clk 0:01:15]}  Qxc7 {[%clk 0:02:06]} 24. Rfe1 {[%clk 0:01:11]}  Ng4 {[%clk 0:02:03]} 25. Bb5 {[%clk 0:01:11]}  Reb8 {[%clk 0:02:02]} 26. Bc3 {[%clk 0:01:01]}  Ne5 {[%clk 0:01:48]} 27. Qe2 {[%clk 0:00:55]}  Ra2 {[%clk 0:01:45]} 28. f4 {[%clk 0:00:51]}  c4 {[%clk 0:01:29]} 29. Bxe5 {[%clk 0:00:26]}  Rxb5 {[%clk 0:01:14]} 30. Bxg7 {[%clk 0:00:26]}  Kxg7 {[%clk 0:01:15]} 31. e5 {[%clk 0:00:22]}  Rxd5 {[%clk 0:00:57]} 32. e6 {[%clk 0:00:22]}  fxe6 {[%clk 0:00:49]} 33. Qxe6 {[%clk 0:00:23]}  Rd2 {[%clk 0:00:37]} 34. Qe8 {[%clk 0:00:18]}  Ra7 {[%clk 0:00:37]} 35. f5 {[%clk 0:00:15]}  Qc5+ {[%clk 0:00:29]} 36. Kh1 {[%clk 0:00:13]}  Qxf5 {[%clk 0:00:29]} 37. Rf1 {[%clk 0:00:05]}  Rf2 {[%clk 0:00:22]} 38. Rg1 {[%clk 0:00:05]}  Rf7 {[%clk 0:00:18]} 39. Rbe1 {[%clk 0:00:05]}  d5 {[%clk 0:00:12]} 40. Qe3 {[%clk 0:00:05]}  Rxb2 {[%clk 0:00:11]} 41. Qd4+ {[%clk 0:00:05]}  Qf6 {[%clk 0:00:12]} 42. Qxd5 {[%clk 0:00:05]}  c3 {[%clk 0:00:12]} 43. Re6 {[%clk 0:00:05]}  Qg5 {[%clk 0:00:04]} 44. Re5 {[%clk 0:00:04]}  Qd2 {[%clk 0:00:03]} 45. Qe4 {[%clk 0:00:03]}  c2 {[%clk 0:00:03]} 46. Re6 {[%clk 0:00:03]}  Qg5 {[%clk 0:00:01]} 47. Qd4+ {[%clk 0:00:03]}  Kh7 {[%clk 0:00:01]} 48. Qxb2 {[%clk 0:00:03]}  Qd2 {[%clk 0:00:02]} 49. Qe5 {[%clk 0:00:02]}  Qd1 {[%clk 0:00:02]} 50. Re8 {[%clk 0:00:02]}  Qxg1+ {[%clk 0:00:02]} 51. Kxg1 {[%clk 0:00:03]}  c1=Q+ {[%clk 0:00:03]} 52. Qe1 {[%clk 0:00:03]}  Qc5+ {[%clk 0:00:03]} 53. Qe3 {[%clk 0:00:03]}  Qb5 {[%clk 0:00:02]} 54. Qd4 {[%clk 0:00:03]}  Qf1# {[%clk 0:00:02]} 0-1


[Site "https://www.chess.com"]

[Event "Titled Tuesday Blitz February 14 Early 2023"]
[White "Sychev, Klementy"]
[Black "Girsh, Daniel"]
[WhiteFideId "4114060"]
[BlackFideId "30949190"]
[WhiteElo "2547"]
[BlackElo "2123"]
[Result "1-0"]
[Round "05"]
[TimeControl "180+2"]
[Date "2023.02.15"]
[WhiteClock "0:00:45"]
[BlackClock "0:01:10"]

1. e4 {[%clk 0:03:00]}  c5 {[%clk 0:02:56]} 2. Nf3 {[%clk 0:03:00]}  d6 {[%clk 0:02:56]} 3. d4 {[%clk 0:03:00]}  cxd4 {[%clk 0:02:57]} 4. Nxd4 {[%clk 0:03:00]}  Nf6 {[%clk 0:02:58]} 5. Nc3 {[%clk 0:03:00]}  a6 {[%clk 0:02:59]} 6. Bg5 {[%clk 0:03:00]}  e6 {[%clk 0:02:56]} 7. f4 {[%clk 0:03:00]}  h6 {[%clk 0:02:56]} 8. Bh4 {[%clk 0:03:00]}  Qb6 {[%clk 0:02:56]} 9. Qd2 {[%clk 0:03:00]}  Qxb2 {[%clk 0:02:52]} 10. Rb1 {[%clk 0:03:00]}  Qa3 {[%clk 0:02:52]} 11. Be2 {[%clk 0:02:59]}  Nc6 {[%clk 0:02:51]} 12. Nxc6 {[%clk 0:02:56]}  bxc6 {[%clk 0:02:51]} 13. e5 {[%clk 0:02:41]}  Nd5 {[%clk 0:02:50]} 14. Nxd5 {[%clk 0:02:30]}  cxd5 {[%clk 0:02:41]} 15. Rb3 {[%clk 0:02:16]}  Qa4 {[%clk 0:02:27]} 16. O-O {[%clk 0:01:20]}  Be7 {[%clk 0:02:27]} 17. Bxe7 {[%clk 0:01:17]}  Kxe7 {[%clk 0:02:28]} 18. exd6+ {[%clk 0:01:16]}  Kxd6 {[%clk 0:02:29]} 19. Qc3 {[%clk 0:01:11]}  Bd7 {[%clk 0:02:02]} 20. Rb6+ {[%clk 0:00:55]}  Ke7 {[%clk 0:02:01]} 21. Qc5+ {[%clk 0:00:54]}  Ke8 {[%clk 0:01:32]} 22. Rfb1 {[%clk 0:00:51]}  f6 {[%clk 0:01:19]} 23. Bh5+ {[%clk 0:00:47]}  g6 {[%clk 0:01:12]} 24. Bxg6+ {[%clk 0:00:45]}  Kd8 {[%clk 0:01:10]} 25. Rb8+ {[%clk 0:00:45]} 1-0


[Site "https://www.chess.com"]

[Event "Titled Tuesday Blitz February 14 Early 2023"]
[White "Kuzmin, Roman"]
[Black "Pantsulaia, Levan"]
[WhiteFideId "44134932"]
[BlackFideId "13602071"]
[WhiteElo "2198"]
[BlackElo "2570"]
[Result "0-1"]
[Round "05"]
[TimeControl "180+2"]
[Date "2023.02.15"]
[WhiteClock "0:00:03"]
[BlackClock "0:00:30"]

1. e4 {[%clk 0:03:00]}  c5 {[%clk 0:02:59]} 2. Nf3 {[%clk 0:02:57]}  a6 {[%clk 0:03:00]} 3. c4 {[%clk 0:02:54]}  e6 {[%clk 0:02:59]} 4. d4 {[%clk 0:02:47]}  cxd4 {[%clk 0:03:00]} 5. Nxd4 {[%clk 0:02:47]}  Nf6 {[%clk 0:03:01]} 6. Bd3 {[%clk 0:02:46]}  Bc5 {[%clk 0:02:57]} 7. Nc2 {[%clk 0:02:41]}  d6 {[%clk 0:02:56]} 8. O-O {[%clk 0:02:39]}  Nc6 {[%clk 0:02:56]} 9. Nc3 {[%clk 0:02:37]}  O-O {[%clk 0:02:56]} 10. Bg5 {[%clk 0:02:31]}  h6 {[%clk 0:02:56]} 11. Bh4 {[%clk 0:02:31]}  e5 {[%clk 0:02:49]} 12. b4 {[%clk 0:02:19]}  Ba7 {[%clk 0:02:41]} 13. Nd5 {[%clk 0:02:13]}  g5 {[%clk 0:02:40]} 14. Bg3 {[%clk 0:02:13]}  Nxd5 {[%clk 0:02:36]} 15. exd5 {[%clk 0:02:14]}  Ne7 {[%clk 0:02:36]} 16. Qh5 {[%clk 0:02:11]}  Kg7 {[%clk 0:02:34]} 17. h4 {[%clk 0:02:01]}  Nf5 {[%clk 0:02:29]} 18. Kh1 {[%clk 0:01:39]}  Qf6 {[%clk 0:02:01]} 19. c5 {[%clk 0:01:32]}  gxh4 {[%clk 0:01:37]} 20. Bh2 {[%clk 0:01:28]}  Qg5 {[%clk 0:01:32]} 21. Qe2 {[%clk 0:01:12]}  dxc5 {[%clk 0:01:23]} 22. bxc5 {[%clk 0:00:50]}  Bxc5 {[%clk 0:01:20]} 23. Qxe5+ {[%clk 0:00:50]}  f6 {[%clk 0:01:20]} 24. Qc7+ {[%clk 0:00:50]}  Be7 {[%clk 0:01:15]} 25. d6 {[%clk 0:00:37]}  Rf7 {[%clk 0:01:06]} 26. dxe7 {[%clk 0:00:32]}  Rxe7 {[%clk 0:01:07]} 27. Qf4 {[%clk 0:00:31]}  Be6 {[%clk 0:01:03]} 28. Rfe1 {[%clk 0:00:29]}  Rae8 {[%clk 0:01:02]} 29. Qxg5+ {[%clk 0:00:20]}  hxg5 {[%clk 0:01:02]} 30. Bd6 {[%clk 0:00:19]}  Nxd6 {[%clk 0:01:01]} 31. Nd4 {[%clk 0:00:20]}  Bd7 {[%clk 0:00:58]} 32. Red1 {[%clk 0:00:20]}  Ne4 {[%clk 0:00:55]} 33. Kg1 {[%clk 0:00:19]}  Nc5 {[%clk 0:00:53]} 34. Bf5 {[%clk 0:00:17]}  Kf7 {[%clk 0:00:47]} 35. Rac1 {[%clk 0:00:17]}  b6 {[%clk 0:00:46]} 36. a4 {[%clk 0:00:15]}  Bxa4 {[%clk 0:00:45]} 37. Rd2 {[%clk 0:00:07]}  Re1+ {[%clk 0:00:44]} 38. Rxe1 {[%clk 0:00:08]}  Rxe1+ {[%clk 0:00:44]} 39. Kh2 {[%clk 0:00:08]}  Rd1 {[%clk 0:00:35]} 40. Nf3 {[%clk 0:00:04]}  Rxd2 {[%clk 0:00:32]} 41. Nxd2 {[%clk 0:00:05]}  Bd7 {[%clk 0:00:31]} 42. Bc2 {[%clk 0:00:04]}  b5 {[%clk 0:00:31]} 43. Kg1 {[%clk 0:00:03]}  a5 {[%clk 0:00:32]} 44. Kf1 {[%clk 0:00:04]}  b4 {[%clk 0:00:31]} 45. Ke1 {[%clk 0:00:05]}  a4 {[%clk 0:00:32]} 46. Nc4 {[%clk 0:00:05]}  a3 {[%clk 0:00:30]} 47. Kd2 {[%clk 0:00:03]}  a2 {[%clk 0:00:30]} 0-1


[Site "https://www.chess.com"]

[Event "Titled Tuesday Blitz February 14 Early 2023"]
[White "Yuan, Qingyu"]
[Black "Shuvalov, Evgenij"]
[WhiteFideId "8609772"]
[BlackFideId "4187237"]
[WhiteElo "2373"]
[BlackElo "2038"]
[Result "1-0"]
[Round "05"]
[TimeControl "180+2"]
[Date "2023.02.15"]
[WhiteClock "0:00:04"]
[BlackClock "0:00:11"]

1. e4 {[%clk 0:03:00]}  e6 {[%clk 0:02:59]} 2. d4 {[%clk 0:02:59]}  d5 {[%clk 0:03:00]} 3. Nd2 {[%clk 0:02:59]}  c5 {[%clk 0:02:59]} 4. Ngf3 {[%clk 0:02:59]}  Nc6 {[%clk 0:02:59]} 5. exd5 {[%clk 0:02:59]}  exd5 {[%clk 0:03:00]} 6. Bb5 {[%clk 0:02:59]}  Qe7+ {[%clk 0:03:00]} 7. Be2 {[%clk 0:02:53]}  Qc7 {[%clk 0:03:00]} 8. O-O {[%clk 0:02:42]}  Nf6 {[%clk 0:02:59]} 9. Re1 {[%clk 0:02:40]}  Be6 {[%clk 0:02:59]} 10. dxc5 {[%clk 0:02:39]}  Bxc5 {[%clk 0:02:58]} 11. Nb3 {[%clk 0:02:39]}  Bb6 {[%clk 0:02:57]} 12. c3 {[%clk 0:02:19]}  O-O {[%clk 0:02:54]} 13. Nbd4 {[%clk 0:02:14]}  Bg4 {[%clk 0:02:49]} 14. Bg5 {[%clk 0:02:07]}  Ne4 {[%clk 0:02:45]} 15. Bh4 {[%clk 0:01:52]}  Rfe8 {[%clk 0:02:41]} 16. Bg3 {[%clk 0:01:49]}  Nxg3 {[%clk 0:02:41]} 17. hxg3 {[%clk 0:01:50]}  Re7 {[%clk 0:02:21]} 18. Nxc6 {[%clk 0:01:30]}  bxc6 {[%clk 0:02:17]} 19. Nd4 {[%clk 0:01:30]}  Bxe2 {[%clk 0:02:12]} 20. Rxe2 {[%clk 0:01:30]}  Bxd4 {[%clk 0:02:09]} 21. cxd4 {[%clk 0:01:27]}  Rae8 {[%clk 0:02:08]} 22. Rxe7 {[%clk 0:01:26]}  Qxe7 {[%clk 0:02:08]} 23. Rc1 {[%clk 0:01:18]}  Qb4 {[%clk 0:02:04]} 24. b3 {[%clk 0:01:01]}  h6 {[%clk 0:02:02]} 25. Qc2 {[%clk 0:00:48]}  Qxd4 {[%clk 0:01:49]} 26. Qxc6 {[%clk 0:00:47]}  Re6 {[%clk 0:01:39]} 27. Qc8+ {[%clk 0:00:41]}  Kh7 {[%clk 0:01:38]} 28. Qc2+ {[%clk 0:00:42]}  g6 {[%clk 0:01:32]} 29. Rd1 {[%clk 0:00:41]}  Qe5 {[%clk 0:01:29]} 30. Qc5 {[%clk 0:00:28]}  Ra6 {[%clk 0:01:24]} 31. a4 {[%clk 0:00:22]}  Qe2 {[%clk 0:01:02]} 32. Qxd5 {[%clk 0:00:19]}  Rf6 {[%clk 0:01:02]} 33. Rf1 {[%clk 0:00:16]}  h5 {[%clk 0:00:56]} 34. Qd4 {[%clk 0:00:16]}  Rb6 {[%clk 0:00:53]} 35. a5 {[%clk 0:00:14]}  Rxb3 {[%clk 0:00:50]} 36. Qxa7 {[%clk 0:00:14]}  Qe6 {[%clk 0:00:46]} 37. Ra1 {[%clk 0:00:12]}  Qf6 {[%clk 0:00:44]} 38. Re1 {[%clk 0:00:11]}  Ra3 {[%clk 0:00:38]} 39. Kh2 {[%clk 0:00:03]}  h4 {[%clk 0:00:37]} 40. Re7 {[%clk 0:00:02]}  hxg3+ {[%clk 0:00:36]} 41. fxg3 {[%clk 0:00:03]}  Kg7 {[%clk 0:00:32]} 42. Qc5 {[%clk 0:00:02]}  Rxa5 {[%clk 0:00:28]} 43. Rxf7+ {[%clk 0:00:01]}  Qxf7 {[%clk 0:00:28]} 44. Qxa5 {[%clk 0:00:02]}  Qf6 {[%clk 0:00:26]} 45. Qc5 {[%clk 0:00:02]}  Qe6 {[%clk 0:00:23]} 46. Qd4+ {[%clk 0:00:02]}  Kf7 {[%clk 0:00:23]} 47. Qh4 {[%clk 0:00:03]}  Kg7 {[%clk 0:00:22]} 48. Qg5 {[%clk 0:00:03]}  Qd6 {[%clk 0:00:19]} 49. Qg4 {[%clk 0:00:03]}  Qf6 {[%clk 0:00:19]} 50. Qe4 {[%clk 0:00:03]}  Qd6 {[%clk 0:00:18]} 51. Qe3 {[%clk 0:00:03]}  Qf6 {[%clk 0:00:18]} 52. Qd3 {[%clk 0:00:04]}  Qe6 {[%clk 0:00:18]} 53. Qd4+ {[%clk 0:00:04]}  Kh7 {[%clk 0:00:19]} 54. Qf4 {[%clk 0:00:04]}  Qc6 {[%clk 0:00:18]} 55. Qe5 {[%clk 0:00:04]}  Qb6 {[%clk 0:00:17]} 56. g4 {[%clk 0:00:04]}  Qc6 {[%clk 0:00:17]} 57. Qe7+ {[%clk 0:00:03]}  Kg8 {[%clk 0:00:15]} 58. g5 {[%clk 0:00:03]}  Qc2 {[%clk 0:00:14]} 59. Qf6 {[%clk 0:00:03]}  Qd3 {[%clk 0:00:14]} 60. g3 {[%clk 0:00:02]}  Qc2+ {[%clk 0:00:14]} 61. Kh3 {[%clk 0:00:02]}  Qb1 {[%clk 0:00:15]} 62. Qe6+ {[%clk 0:00:03]}  Kh7 {[%clk 0:00:14]} 63. Qf7+ {[%clk 0:00:03]}  Kh8 {[%clk 0:00:15]} 64. Qf6+ {[%clk 0:00:03]}  Kh7 {[%clk 0:00:15]} 65. Kg4 {[%clk 0:00:04]}  Qd1+ {[%clk 0:00:14]} 66. Kf4 {[%clk 0:00:04]}  Qf1+ {[%clk 0:00:14]} 67. Ke5 {[%clk 0:00:04]}  Qb5+ {[%clk 0:00:14]} 68. Ke6 {[%clk 0:00:04]}  Qc6+ {[%clk 0:00:14]} 69. Kf7 {[%clk 0:00:03]}  Qd5+ {[%clk 0:00:13]} 70. Kf8 {[%clk 0:00:02]}  Qc5+ {[%clk 0:00:13]} 71. Qe7+ {[%clk 0:00:02]}  Qxe7+ {[%clk 0:00:11]} 72. Kxe7 {[%clk 0:00:03]}  Kg7 {[%clk 0:00:11]} 73. Ke6 {[%clk 0:00:03]}  Kg8 {[%clk 0:00:10]} 74. Kf6 {[%clk 0:00:04]}  Kf8 {[%clk 0:00:11]} 75. Kxg6 {[%clk 0:00:04]}  Kg8 {[%clk 0:00:12]} 76. g4 {[%clk 0:00:04]}  Kf8 {[%clk 0:00:11]} 77. Kh7 {[%clk 0:00:04]} 1-0


[Site "https://www.chess.com"]